Cogmind - Beta 12 @@@ ROGUE MODE // 2023.05.10 @ 11:06:43 Player: Happytimes Result: Self-destructed Performance ------------- Evolutions (8) 4000 Regions Visited (24) 4800 Robots Destroyed (34) 170 Value Destroyed (2296) 2296 Prototype IDs (29) 580 Alien Tech Used (2) 400 Bonus (3742) 3742 TOTAL SCORE: 15988 Bonus ------- Follower Combat Kills 742 Entered Garrisons 400 Used RIF Installer 1000 Entered DSFs 1000 Met Data Miner 300 Met Zhirov 300 Cogmind --------- Core Integrity 938/1450 Matter 143/300 Energy 10/100 System Corruption 16% Temperature Cool (0) Movement Core (150) Ox2 Location -2/Research Parts ------- > --- POWER (2) -------- (None) > --- PROPULSION (8) --- Improved Antigrav System > --- UTILITY (10) ----- Advanced Melee Analysis Suite Core Analyzer Improved Armor Integrity Analyzer Advanced ECM Suite Relay Coupler [NC] (15) Relay Coupler [Swarmer] (40) Relay Coupler [Grunt] (21) Relay Coupler [Brawler] (29) Relay Coupler [Specialist] (29) > --- WEAPON (3) ------- Enhanced Quantum Rifle > --- INVENTORY (5) ---- Light Quantum Reactor Improved Antigrav System Remote Datajack Peak State ------------ > --- POWER ------------ Light Antimatter Reactor Light Quantum Reactor > --- PROPULSION ------- Xenon Bombardment Thruster Xenon Bombardment Thruster Field Propulsion Array Field Propulsion Array Field Propulsion Array > --- UTILITY ---------- Enhanced Optical Array Advanced Melee Analysis Suite Core Analyzer Improved Armor Integrity Analyzer Improved System Shield Advanced System Shield Authchip [R/Combat] Relay Coupler [Grunt] Relay Coupler [Demolisher] Relay Coupler [Specialist] > --- WEAPON ----------- Advanced Remote Datajack Enhanced Force Lance Enhanced Force Lance > --- INVENTORY -------- Quantum Reactor Advanced ECM Suite Relay Coupler [Grunt] Enhanced Quantum Rifle Heavy Machine Gun [Rating: 142] Favorites ----------- Power Light Fission Core Engine Ion Engine Power Core Light Fission Core Reactor Light Quantum Reactor Propulsion Improved VTOL Module Treads Light Treads Wheel Wheel Hover Unit Improved Gyrokinetic Inverter Flight Unit Improved VTOL Module Utility Enhanced Optical Array Device Advanced ECM Suite Storage Small Storage Unit Processor Enhanced Optical Array Hackware Relay Coupler [Specialist] Protection Hardened Light Armor Plating Weapon Powered Hammer Energy Gun EM Pulse Gun Energy Cannon Neutron Cannon Ballistic Gun Heavy Assault Rifle Launcher Rocket Launcher Special Weapon Advanced Remote Datajack Impact Weapon Powered Hammer Slashing Weapon Makeshift Sword Piercing Weapon Enhanced Force Lance Special Melee Weapon Advanced Datajack Build | -11 -10 -10 -9 -8 -7 -7 -6 -6 -6 -5 -5 -5 -4 -4 -4 -4 -4 -4 -3 -3 -3 -2 -2 -2 ------- Run | Jun Mat Min Mat Mat Fac DSF Fac Low Dat Pro Fac Ext Fac Gar Fac Upp Upp Zhi Pro Res DSF Res Gar Res Slots Evolved 16 | . . . 2 2 2 . 2 . . . 2 . 2 . . . . . . 2 . 2 . . Power 1 | . . . . . 1 . . . . . . . . . . . . . . . . . . . Propulsion 6 | . . . 1 1 1 . . . . . 1 . . . . . . . . . . 2 . . Utility 8 | . . . 1 1 . . 2 . . . 1 . 1 . . . . . . 2 . . . . Weapon 1 | . . . . . . . . . . . . . 1 . . . . . . . . . . . Parts Attached 152 | 6 . 3 6 8 5 7 5 4 . 17 5 3 4 4 8 4 3 4 9 4 11 2 25 5 Power 24 | 1 . . 1 . . 3 1 . . 4 1 . 1 . 2 . . 1 1 1 1 . 4 2 Engine 8 | 1 . . 1 . . 3 1 . . 2 . . . . . . . . . . . . . . Core 5 | . . . . . . . . . . 1 1 . 1 . 2 . . . . . . . . . Reactor 11 | . . . . . . . . . . 1 . . . . . . . 1 1 1 1 . 4 2 Propulsion 33 | 2 . . . 5 . 3 . . . 2 1 . 1 . 3 1 1 . 1 1 5 1 5 1 Treads 1 | . . . . . . . . . . . . . . . . . . . 1 . . . . . Leg . | . . . . . . . . . . . . . . . . . . . . . . . . . Wheel 3 | 2 . . . 1 . . . . . . . . . . . . . . . . . . . . Hover 3 | . . . . . . . . . . . . . . . . . 1 . . 1 . . . 1 Flight 26 | . . . . 4 . 3 . . . 2 1 . 1 . 3 1 . . . . 5 1 5 . Utility 46 | 1 . . . . 4 . 4 1 . 7 3 2 1 4 2 2 . 2 1 1 2 1 8 . Device 10 | . . . . . 1 . . . . 4 . 1 . . . 1 . 1 . . 1 . 1 . Storage 3 | 1 . . . . 1 . . . . . . . 1 . . . . . . . . . . . Processor 11 | . . . . . 1 . 4 1 . 2 . . . . . 1 . . . 1 . 1 . . Hackware 20 | . . . . . 1 . . . . . 2 1 . 4 2 . . 1 1 . 1 . 7 . Protection 2 | . . . . . . . . . . 1 1 . . . . . . . . . . . . . Artifact . | . . . . . . . . . . . . . . . . . . . . . . . . . Weapon 49 | 2 . 3 5 3 1 1 . 3 . 4 . 1 1 . 1 1 2 1 6 1 3 . 8 2 Energy Gun 13 | 2 . 1 2 2 . . . . . 1 . . . . . . . . 3 . . . 1 1 Energy Cannon 2 | . . . . . . . . . . 1 . . . . . . . . . . . . 1 . Ballistic Gun 4 | . . . 3 . . . . . . . . . . . . . . . . . . . 1 . Ballistic Cannon . | . . . . . . . . . . . . . . . . . . . . . . . . . Launcher 3 | . . 1 . 1 . 1 . . . . . . . . . . . . . . . . . . Special Weapon 11 | . . 1 . . . . . 1 . . . 1 . . 1 1 1 . . . . . 5 . Impact Weapon 3 | . . . . . . . . . . . . . 1 . . . 1 . 1 . . . . . Slashing Weapon 8 | . . . . . 1 . . 2 . 1 . . . . . . . 1 2 1 . . . . Piercing Weapon 4 | . . . . . . . . . . 1 . . . . . . . . . . 2 . . 1 Special Melee Weapon 1 | . . . . . . . . . . . . . . . . . . . . . 1 . . . Unidentified Prototypes 10 | . . . 2 1 . . . . . 2 1 . . . . . . 4 . . . . . . Parts Lost 61 | . . 2 . . . 7 . . . 5 . 4 . . 3 7 . . 11 . 5 . 8 9 Power 10 | . . . . . . 2 . . . 1 . 1 . . . 2 . . 1 . 1 . . 2 Propulsion 23 | . . . . . . 2 . . . 1 . 1 . . 1 5 . . 3 . 2 . 4 4 Utility 16 | . . . . . . 2 . . . 2 . 2 . . 2 . . . 3 . 1 . 3 1 Weapon 12 | . . 2 . . . 1 . . . 1 . . . . . . . . 4 . 1 . 1 2 Highest Loss Streak 9 | . . 2 . . . 7 . . . 3 . 3 . . 2 7 . . 8 . 3 . 4 9 To Critical Strikes . | . . . . . . . . . . . . . . . . . . . . . . . . . Average Slot Usage (%) 69 | . 85 76 64 69 76 73 73 91 93 84 78 84 55 73 76 85 55 57 51 47 56 64 72 66 Engine 2 | . 14 14 11 9 7 6 4 6 6 4 . . . . . . . . . . . . . . Core 1 | . . . . . . . . . . 1 . . 5 5 5 8 . . . . . . . . Reactor 1 | . . . . . . . . . . . 5 5 . . . . . . . 2 3 4 5 4 Wheel 3 | . 28 28 22 2 . . . . . . . . . . . . . . . . . . . . Hover 1 | . . . . . . . . . . . . . . . . . 4 5 5 9 2 . . . Flight 16 | . . . . 31 30 31 33 33 33 33 31 32 22 26 25 27 10 10 . . 10 17 14 11 Device 1 | . . . . . 7 2 . . . 8 5 5 . . . 3 . . . . . . 2 4 Storage 4 | . 14 14 11 9 7 7 6 6 6 6 5 5 4 5 5 5 5 5 . . . . . . Processor 11 | . . . . . . 7 22 33 33 16 11 11 10 10 7 8 10 10 10 11 14 16 17 17 Hackware 12 | . . . . . 6 7 . . . . 8 11 5 16 22 22 21 21 21 14 14 17 21 21 Protection 1 | . . . . . . . . . . 5 2 5 5 5 4 . . . . . . . . . Energy Gun 2 | . 28 16 7 8 4 . . . . . . . . . . . . . . . . . . 1 Impact Weapon 1 | . . . . . . . . . . . . . 2 5 5 4 4 5 4 . . . . . Slashing Weapon 1 | . . . . . 2 7 6 9 13 . 5 2 . . . . . . 5 8 . . . . Piercing Weapon 1 | . . . . . . . . . . 5 . . . . . . . . . . 8 8 5 1 Naked Turns . | . . . . . . . . . . . . . . . . . . . . . . . . . Heaviest Build 52 | 14 14 16 16 16 17 21 12 14 14 28 25 28 20 20 20 31 8 8 15 14 40 32 52 38 Greatest Support 57 | 20 20 20 20 36 20 25 20 20 20 25 30 30 27 27 33 33 9 9 20 24 44 52 57 40 Greatest Overweight (x) 3 | 1 . . . 3 . . . . . 1 . . . . . . . . 1 . 1 . 1 3 Average Overweight (x) . | . . . . . . . . . . . . . . . . . . . . . . . . . Largest Inventory Capacity 8 | 8 8 8 8 8 8 8 8 8 8 8 8 8 8 8 8 8 8 8 8 5 5 5 5 5 Average Capacity 6 | 7 8 8 8 8 8 8 8 8 8 8 8 8 7 8 8 8 8 8 5 5 5 5 5 5 Most Carried 8 | 4 . 3 5 8 8 8 7 6 5 8 8 8 8 8 8 8 8 8 8 5 5 5 5 5 Average Carried 5 | . . 1 2 6 7 6 4 5 5 7 6 7 5 7 7 6 7 7 4 5 3 3 4 3 Final Capacity 8 | 8 8 8 8 8 8 8 8 8 8 8 8 8 8 8 8 8 8 8 5 5 5 5 5 5 Final Carried 8 | . . 2 4 8 8 4 5 5 5 7 7 8 7 8 8 8 8 8 5 5 5 5 4 3 Class Distribution -------------------- 29% | Hacker-Sprinter 29% | Sprinter 16% | Hacker-Mutant 11% | Mutant 5% | Bothacker-Mutant 5% | Bothacker-Sprinter Dominant Class ---------------- Mutant | -10/Materials Mutant | -10/Mines Mutant | -9/Materials Sprinter | -8/Materials Sprinter | -7/Factory Sprinter | -7/DSF Sprinter | -6/Factory Sprinter | -6/Lower Caves Sprinter | -6/Data Miner Sprinter | -5/Proximity Caves Hacker-Sprinter | -5/Factory Hacker-Sprinter | -5/Extension Sprinter | -4/Factory Sprinter | -4/Garrison Sprinter | -4/Factory Hacker-Sprinter | -4/Upper Caves Hacker-Sprinter | -4/Upper Caves Hacker-Sprinter | -4/Zhirov Hacker-Mutant | -3/Proximity Caves Hacker-Mutant | -3/Research Hacker-Mutant | -3/DSF Hacker-Sprinter | -2/Research Bothacker-Mutant | -2/Garrison Bothacker-Sprinter | -2/Research Resources | -11 -10 -10 -9 -8 -7 -7 -6 -6 -6 -5 -5 -5 -4 -4 -4 -4 -4 -4 -3 -3 -3 -2 -2 -2 ----------- Run | Jun Mat Min Mat Mat Fac DSF Fac Low Dat Pro Fac Ext Fac Gar Fac Upp Upp Zhi Pro Res DSF Res Gar Res Matter Collected 1716 | 229 . 55 . . 39 133 27 139 . 194 . 9 . . 157 114 35 . 108 10 77 . 243 147 Remotely . | . . . . . . . . . . . . . . . . . . . . . . . . . Salvage Created 1967 | . . 50 56 29 30 101 27 . . 169 . . 27 . 72 . 68 . 704 135 77 . 358 64 Parts 95 | . . 6 4 4 3 6 3 . . 12 . . . . 6 . 4 . 11 5 4 . 22 5 Haulers Intercepted . | . . . . . . . . . . . . . . . . . . . . . . . . . Recyclers Shooed . | . . . . . . . . . . . . . . . . . . . . . . . . . Parts Field Recycled . | . . . . . . . . . . . . . . . . . . . . . . . . . Retrieved Matter . | . . . . . . . . . . . . . . . . . . . . . . . . . Parts Self-Destructed 54 | . . . . . . . . . . 32 . . . . . . 13 . 9 . . . . . Prevented 3 | . . . . . . . . . . . . . . . . . 3 . . . . . . . Kills | -11 -10 -10 -9 -8 -7 -7 -6 -6 -6 -5 -5 -5 -4 -4 -4 -4 -4 -4 -3 -3 -3 -2 -2 -2 ------- Run | Jun Mat Min Mat Mat Fac DSF Fac Low Dat Pro Fac Ext Fac Gar Fac Upp Upp Zhi Pro Res DSF Res Gar Res Combat Hostiles Destroyed 30 | . . 5 1 2 . 1 . . . 4 . . . . 3 . . . 5 . 1 . 7 1 Melee 17 | . . 1 . . . 1 . . . 4 . . . . 3 . . . 2 . 1 . 5 . Guns 8 | . . 1 1 2 . . . . . . . . . . . . . . 1 . . . 2 1 AOE 3 | . . 3 . . . . . . . . . . . . . . . . . . . . . . Classes Destroyed 12 | . . 2 1 . 2 1 1 . . 1 . . 1 . . . . . 2 1 . . . . Worker 2 | . . . . . 1 . . . . . . . . . 1 . . . . . . . . . Builder 1 | . . . . . . . . . . . . . 1 . . . . . . . . . . . Tunneler 1 | . . . . . 1 . . . . . . . . . . . . . . . . . . . Recycler 1 | . . . . . . . . . . . . . . . . . . . . 1 . . . . Watcher 1 | . . . . . . . 1 . . . . . . . . . . . . . . . . . Swarmer 14 | . . 3 . 2 . . . . . 2 . . . . 3 . . . . . . . 4 . Grunt 3 | . . . . . . . . . . . . . . . . . . . 3 . . . . . Sentry 2 | . . . 1 . . . . . . . . . . . . . . . 1 . . . . . Specialist 2 | . . . . . . 1 . . . . . . . . . . . . . . 1 . . . Hunter 4 | . . . . . . . . . . 2 . . . . . . . . . . . . 2 . Programmer 3 | . . . . . . . . . . . . . . . . . . . 1 . . . 1 1 Assembled 2 | . . 2 . . . . . . . . . . . . . . . . . . . . . . Best Kill Streak 5 | . . 3 1 2 2 1 1 . . 2 . . 1 . 3 . . . 2 1 1 . 5 1 Combat Bots Only 5 | . . 3 1 2 . 1 . . . 2 . . . . 3 . . . 2 . 1 . 5 1 Max Kills in Single Turn 3 | . . 3 1 1 1 1 1 . . 1 . . 1 . 1 . . . 1 1 1 . 1 1 Gunslinging . | . . . . . . . . . . . . . . . . . . . . . . . . . Exploded 3 | . . 3 . . . . . . . . . . . . . . . . . . . . . . Melee 1 | . . 1 . . . 1 . . . 1 . . . . 1 . . . 1 . 1 . 1 . Uniques/NPCs Destroyed . | . . . . . . . . . . . . . . . . . . . . . . . . . Combat | -11 -10 -10 -9 -8 -7 -7 -6 -6 -6 -5 -5 -5 -4 -4 -4 -4 -4 -4 -3 -3 -3 -2 -2 -2 -------- Run | Jun Mat Min Mat Mat Fac DSF Fac Low Dat Pro Fac Ext Fac Gar Fac Upp Upp Zhi Pro Res DSF Res Gar Res Damage Taken 7455 | . . 276 89 126 . 631 . 35 . 740 . 335 18 25 371 526 245 . 1468 . 633 28 1210 699 Core 2561 | . . 101 31 21 . 216 . 20 . 259 . 84 . 25 72 203 160 . 626 . 231 . 264 248 Absorbed by Shields 170 | . . . . . . 150 . . . . . . . . . . . . . . 2 . 18 . Regen/Repaired (Parts) 164 | . . . . . . . . . . . . . 164 . . . . . . . . . . . Core Remaining (%) 73 | 100 . 59 92 96 . 69 . . . 67 . 91 . . . . . . 2 . 82 . . . Volleys Fired 111 | . . 12 12 3 . 2 . 5 . 5 . 11 . . 1 . 1 . 7 . . . 40 12 Largest 3 | . . 2 2 2 . 1 . 1 . 1 . 1 . . 1 . 1 . 3 . . . 1 1 Hottest 263 | . . 80 88 86 . 33 . 100 . 90 . 5 . . 5 . 5 . 263 . . . 65 65 Shots Fired 134 | . . 15 20 6 . 2 . 5 . 5 . 11 . . 1 . 1 . 17 . . . 40 11 Gun 85 | . . 14 20 6 . . . . . . . . . . . . . . 17 . . . 19 9 Cannon 5 | . . . . . . . . . . 5 . . . . . . . . . . . . . . Launcher 3 | . . 1 . . . 2 . . . . . . . . . . . . . . . . . . Special 41 | . . . . . . . . 5 . . . 11 . . 1 . 1 . . . . . 21 2 Kinetic 23 | . . . 12 3 . . . . . . . . . . . . . . . . . . 8 . Thermal 58 | . . . 8 3 . . . 5 . 5 . . . . . . . . 17 . . . 11 9 Explosive 3 | . . 1 . . . 2 . . . . . . . . . . . . . . . . . . Electromagnetic 14 | . . 14 . . . . . . . . . . . . . . . . . . . . . . Robot Hit Streak 14 | . . 3 5 3 . 2 . . . 2 . 8 . . 9 . 10 . 14 . . . 10 13 Robot Miss Streak 4 | . . 4 3 2 . . . . . 2 . 1 . . . . . . 2 . . . 2 1 Penetration Max . | . . . . . . . . . . . . . . . . . . . . . . . . . Secondary Targets 3 | . . . . 2 . . . . . . . . . . . . . . 1 . . . . . Max Gunslinging Chain 1 | . . . . 1 . . . . . . . . . . . . . . 1 . . . . . Shots Hit Robots 128 | . . 7 11 3 2 4 2 . . 7 . 10 1 . 5 . 3 . 29 1 5 1 29 8 Core Hits 57 | . . 8 3 2 1 6 1 . . 5 . . . . 4 . 1 . 11 1 2 1 9 2 Critical Kills 2 | . . . . . . . . . . . . . . . 1 . 1 . . . . . . . Critical Parts Destroyed 2 | . . . . . . . . . . . . . . . . . 1 . 1 . . . . . Critical Strikes 8 | . . . . . . 1 . . . 2 . . . . 1 . 2 . 1 . . . 1 . Smash 4 | . . . . . . . . . . . . . . . 1 . 2 . 1 . . . . . Sever 1 | . . . . . . 1 . . . . . . . . . . . . . . . . . . Impale 3 | . . . . . . . . . . 2 . . . . . . . . . . . . 1 . Melee Attacks 130 | . . . . . 2 2 3 . . 12 . 1 11 1 27 5 4 . 25 1 6 5 23 2 Impact 60 | . . . . . . . . . . . . . 11 1 27 5 4 . 12 . . . . . Slashing 22 | . . . . . 2 2 3 . . . . 1 . . . . . . 13 1 . . . . Piercing 48 | . . . . . . . . . . 12 . . . . . . . . . . 6 5 23 2 Sneak Attacks 8 | . . . . . 2 1 . . . . . . 1 . 1 . . . . 1 1 . 1 . Combat Hostiles 2 | . . . . . . 1 . . . . . . . . . . . . . . . . 1 . Follow-up Attacks 3 | . . . . . . . . . . . . . . . . . . . 2 . . . 1 . Damage Inflicted 4521 | . . 288 180 46 140 444 77 . . 246 . . 86 . 207 . 167 . 1402 113 299 43 552 231 Guns 993 | . . 78 180 46 . . . . . . . . . . . . . . 367 . . . 135 187 Cannons 77 | . . . . . . . . . . 77 . . . . . . . . . . . . . . Explosions 508 | . . 164 . . . 344 . . . . . . . . . . . . . . . . . . Melee 2897 | . . . . . 140 100 77 . . 169 . . 86 . 207 . 167 . 1035 113 299 43 417 44 Ramming 46 | . . 46 . . . . . . . . . . . . . . . . . . . . . . Kinetic 245 | . . . 98 12 . . . . . . . . . . . . . . . . . . 135 . Thermal 747 | . . . 82 34 . . . . . 77 . . . . . . . . 367 . . . . 187 Explosive 508 | . . 164 . . . 344 . . . . . . . . . . . . . . . . . . Electromagnetic 78 | . . 78 . . . . . . . . . . . . . . . . . . . . . . Impact 688 | . . . . . . . . . . . . . 86 . 207 . 167 . 228 . . . . . Slashing 1237 | . . . . . 140 100 77 . . . . . . . . . . . 807 113 . . . . Piercing 972 | . . . . . . . . . . 169 . . . . . . . . . . 299 43 417 44 Highest Corruption 16 | . . 1 . . . . . . . . . . . . . . . . 2 . 3 . 14 16 Average Corruption 7 | . . 1 . . . . . . . . . . . . . . . . 1 . 2 . 14 14 Corruption Purged . | . . . . . . . . . . . . . . . . . . . . . . . . . Corruption Blocked . | . . . . . . . . . . . . . . . . . . . . . . . . . Effects 24 | . . 1 . . . . . . . . . . . . . . . . 3 . 2 . 10 8 Message Errors 2 | . . . . . . . . . . . . . . . . . . . . . . . 2 . Matter Fused 5 | . . 1 . . . . . . . . . . . . . . . . 1 . . . 1 2 Heat Flow Errors 4 | . . . . . . . . . . . . . . . . . . . 1 . . . 2 1 Parts Rejected 1 | . . . . . . . . . . . . . . . . . . . . . . . 1 . Parts Fused 1 | . . . . . . . . . . . . . . . . . . . . . . . 1 . Data Loss (minor) 4 | . . . . . . . . . . . . . . . . . . . . . . . 3 1 Data Loss (major) 2 | . . . . . . . . . . . . . . . . . . . . . 2 . . . Alerts 2 | . . . . . . . . . . . . . . . . . . . 1 . . . . 1 Misdirections 2 | . . . . . . . . . . . . . . . . . . . . . . . . 2 Weapon Failures 1 | . . . . . . . . . . . . . . . . . . . . . . . . 1 Overload Shots . | . . . . . . . . . . . . . . . . . . . . . . . . . Overflow Damage 631 | . . 6 . . 31 . 5 . . . . . 46 . . . 50 . 363 . . . 130 . Projectiles . | . . . . . . . . . . . . . . . . . . . . . . . . . Explosions . | . . . . . . . . . . . . . . . . . . . . . . . . . Melee 631 | . . 6 . . 31 . 5 . . . . . 46 . . . 50 . 363 . . . 130 . Knockbacks 4 | . . 1 . . . . . . . . . . . . . . . . 3 . . . . . Impact 4 | . . 1 . . . . . . . . . . . . . . . . 3 . . . . . Kinetic . | . . . . . . . . . . . . . . . . . . . . . . . . . Secondary . | . . . . . . . . . . . . . . . . . . . . . . . . . Self-Inflicted Damage 20 | . . 20 . . . . . . . . . . . . . . . . . . . . . . Shots . | . . . . . . . . . . . . . . . . . . . . . . . . . Rammed 8 | . . 8 . . . . . . . . . . . . . . . . . . . . . . Targets Rammed 8 | . . 8 . . . . . . . . . . . . . . . . . . . . . . Kicked . | . . . . . . . . . . . . . . . . . . . . . . . . . Crushed . | . . . . . . . . . . . . . . . . . . . . . . . . . Highest Temperature 334 | . . 56 117 62 . . . 2 . 47 . 5 1 6 82 302 . . 334 . . . 208 166 Average Temperature 57 | . . 24 45 25 . . . 2 . 17 . 5 1 2 20 84 . . 170 . . . 98 93 Received Heat Transfer 828 | . . 20 45 45 . 30 . 15 . 9 . 69 . 9 37 87 . . 393 . 42 9 18 . Effects 2 | . . . . . . . . . . . . . . . . 1 . . 1 . . . . . Energy Bleed 1 | . . . . . . . . . . . . . . . . 1 . . . . . . . . Interference 1 | . . . . . . . . . . . . . . . . . . . 1 . . . . . Siege Activations . | . . . . . . . . . . . . . . . . . . . . . . . . . Robots Corrupted . | . . . . . . . . . . . . . . . . . . . . . . . . . Combat Hostiles . | . . . . . . . . . . . . . . . . . . . . . . . . . Parts Fried 7 | . . . . . . . . . . . . . 5 . . . . . 2 . . . . . Impact Corruptions 11 | . . 1 . . . . . . . . . . 1 . . . 1 . 8 . . . . . Robots Melted . | . . . . . . . . . . . . . . . . . . . . . . . . . Combat Hostiles . | . . . . . . . . . . . . . . . . . . . . . . . . . Parts Melted 2 | . . . . . . . . . . . . . . . . . . . . . 1 . . 1 Heat Transferred 938 | . . . 185 74 . . . . . . . . . . . . . . 494 . . . . 185 Parts Sabotaged . | . . . . . . . . . . . . . . . . . . . . . . . . . Parts Stolen . | . . . . . . . . . . . . . . . . . . . . . . . . . Parts Stripped . | . . . . . . . . . . . . . . . . . . . . . . . . . Power Chain Reactions . | . . . . . . . . . . . . . . . . . . . . . . . . . Missiles Intercepted . | . . . . . . . . . . . . . . . . . . . . . . . . . Alert | -11 -10 -10 -9 -8 -7 -7 -6 -6 -6 -5 -5 -5 -4 -4 -4 -4 -4 -4 -3 -3 -3 -2 -2 -2 ------- Run | Jun Mat Min Mat Mat Fac DSF Fac Low Dat Pro Fac Ext Fac Gar Fac Upp Upp Zhi Pro Res DSF Res Gar Res Peak Influence 442 | . 24 118 127 283 152 139 101 . . . 193 217 150 186 355 . . . . 5 20 77 442 323 Initial 237 | . . 9 37 53 128 106 44 . . . 181 94 99 106 97 . . . . . 3 11 57 237 Average 141 | . 8 61 58 100 144 108 68 . . . 184 165 121 123 154 . . . . 4 10 19 308 258 Maximum Alert Level 2 | . . . . 1 . . . . . . . 1 . . 1 . . . . . . . 2 1 Low Security (%) 73 | 100 100 100 100 81 100 100 100 . . . 100 84 100 100 79 . . . . 100 100 100 11 . Level 1 25 | . . . . 18 . . . . . . . 15 . . 20 . . . . . . . 83 100 Level 2 1 | . . . . . . . . . . . . . . . . . . . . . . . 4 . Level 3 . | . . . . . . . . . . . . . . . . . . . . . . . . . Level 4 . | . . . . . . . . . . . . . . . . . . . . . . . . . Level 5 . | . . . . . . . . . . . . . . . . . . . . . . . . . High Security . | . . . . . . . . . . . . . . . . . . . . . . . . . Max Security . | . . . . . . . . . . . . . . . . . . . . . . . . . Squads Dispatched 15 | . 2 . . 2 1 3 . . . 1 1 . 2 . . . . . . . 1 1 . 1 Investigation 5 | . 1 . . 1 1 . . . . . 1 . 1 . . . . . . . . . . . Extermination . | . . . . . . . . . . . . . . . . . . . . . . . . . Reinforcement 9 | . 1 . . 1 . 3 . . . . . . 1 . . . . . . . 1 1 . 1 Assault 1 | . . . . . . . . . . 1 . . . . . . . . . . . . . . Garrison . | . . . . . . . . . . . . . . . . . . . . . . . . . Intercept . | . . . . . . . . . . . . . . . . . . . . . . . . . Searches Triggered . | . . . . . . . . . . . . . . . . . . . . . . . . . Construction Impeded . | . . . . . . . . . . . . . . . . . . . . . . . . . Haulers Reinforced . | . . . . . . . . . . . . . . . . . . . . . . . . . Active Scanning Responses . | . . . . . . . . . . . . . . . . . . . . . . . . . Cargo Convoy Interrupts . | . . . . . . . . . . . . . . . . . . . . . . . . . Stealth | -11 -10 -10 -9 -8 -7 -7 -6 -6 -6 -5 -5 -5 -4 -4 -4 -4 -4 -4 -3 -3 -3 -2 -2 -2 --------- Run | Jun Mat Min Mat Mat Fac DSF Fac Low Dat Pro Fac Ext Fac Gar Fac Upp Upp Zhi Pro Res DSF Res Gar Res Distress Signals 8 | . . . . 1 . . 1 . . . . 1 . . . . . . . . . . . 5 Communications Jammed . | . . . . . . . . . . . . . . . . . . . . . . . . . Distress Signals . | . . . . . . . . . . . . . . . . . . . . . . . . . Times Spotted 186 | . 2 4 4 25 . 8 3 3 . 32 . 14 2 3 11 4 8 . 18 . 5 2 18 20 Peak Tracking Total 16 | . 2 3 4 16 . 6 2 3 . 9 . 10 1 3 5 4 4 . 7 . 3 2 4 13 Tactical Retreats 28 | . . . . 3 . 1 1 . . 6 . 2 . . 3 1 1 . 4 . 1 . 2 3 Traps | -11 -10 -10 -9 -8 -7 -7 -6 -6 -6 -5 -5 -5 -4 -4 -4 -4 -4 -4 -3 -3 -3 -2 -2 -2 ------- Run | Jun Mat Min Mat Mat Fac DSF Fac Low Dat Pro Fac Ext Fac Gar Fac Upp Upp Zhi Pro Res DSF Res Gar Res Traps Triggered 17 | . 1 . . . 1 4 1 . . . . . . 1 . . . . . . 3 . 6 . Indirectly . | . . . . . . . . . . . . . . . . . . . . . . . . . Trap Hack Attempts . | . . . . . . . . . . . . . . . . . . . . . . . . . Triggered . | . . . . . . . . . . . . . . . . . . . . . . . . . Disarmed . | . . . . . . . . . . . . . . . . . . . . . . . . . Reprogrammed . | . . . . . . . . . . . . . . . . . . . . . . . . . Reused . | . . . . . . . . . . . . . . . . . . . . . . . . . Traps Extracted . | . . . . . . . . . . . . . . . . . . . . . . . . . Installed . | . . . . . . . . . . . . . . . . . . . . . . . . . Triggered 3 | . . . . . . . . . . 2 . . . . . . 1 . . . . . . . Machines | -11 -10 -10 -9 -8 -7 -7 -6 -6 -6 -5 -5 -5 -4 -4 -4 -4 -4 -4 -3 -3 -3 -2 -2 -2 ---------- Run | Jun Mat Min Mat Mat Fac DSF Fac Low Dat Pro Fac Ext Fac Gar Fac Upp Upp Zhi Pro Res DSF Res Gar Res Machines Disabled 11 | . . 2 . . . . . . . . . 1 1 1 1 . . . . . . 1 3 1 Max in Single Turn 1 | . . 1 . . . . . . . . . 1 1 1 1 . . . . . . 1 1 1 Garrison Access 1 | . . . . . . . . . . . 1 . . . . . . . . . . . . . Garrison Relay 4 | . . . . . . . . . . . . . . 1 . . . . . . . . 3 . Machines Repaired . | . . . . . . . . . . . . . . . . . . . . . . . . . Machines Sabotaged . | . . . . . . . . . . . . . . . . . . . . . . . . . Overloaded Fab Kills . | . . . . . . . . . . . . . . . . . . . . . . . . . Hacking | -11 -10 -10 -9 -8 -7 -7 -6 -6 -6 -5 -5 -5 -4 -4 -4 -4 -4 -4 -3 -3 -3 -2 -2 -2 --------- Run | Jun Mat Min Mat Mat Fac DSF Fac Low Dat Pro Fac Ext Fac Gar Fac Upp Upp Zhi Pro Res DSF Res Gar Res Machines Accessed 46 | . 2 . 2 1 3 . 1 . 4 . 4 2 3 1 5 1 3 9 . 1 . 3 1 . Terminals 19 | . 2 . 2 . 2 . 1 . . . . 2 1 1 4 . . . . 1 . 2 1 . Fabricators 4 | . . . . . 1 . . . . . 2 . . . 1 . . . . . . . . . Repair Stations 1 | . . . . . . . . . . . . . 1 . . . . . . . . . . . Recycling Units . | . . . . . . . . . . . . . . . . . . . . . . . . . Scanalyzers 1 | . . . . . . . . . . . 1 . . . . . . . . . . . . . Garrison Access 4 | . . . . 1 . . . . . . 1 . 1 . . . . . . . . 1 . . Total Hacks 144 | . 2 . 7 3 7 . 1 . 32 . 7 6 6 1 11 1 4 48 . 2 . 4 2 . Successful 119 | . 2 . 2 . 3 . 1 . 32 . 5 5 5 . 7 1 4 48 . 1 . 3 . . Failed 25 | . . . 5 3 4 . . . . . 2 1 1 1 4 . . . . 1 . 1 2 . Catastrophic 3 | . . . . . 1 . . . . . . . . 1 . . . . . . . . 1 . Database Lockouts . | . . . . . . . . . . . . . . . . . . . . . . . . . Manual 1 | . . . . . . . . . . . . . . . . . . 1 . . . . . . Terminals 38 | . 2 . 7 . 5 . 1 . . . . 6 1 1 9 . . . . 2 . 2 2 . Fabricators 8 | . . . . . 2 . . . . . 4 . . . 2 . . . . . . . . . Repair Stations 4 | . . . . . . . . . . . . . 4 . . . . . . . . . . . Recycling Units . | . . . . . . . . . . . . . . . . . . . . . . . . . Scanalyzers 2 | . . . . . . . . . . . 2 . . . . . . . . . . . . . Garrison Access 7 | . . . . 3 . . . . . . 1 . 1 . . . . . . . . 2 . . Terminal Hacks 105 | . 2 . 2 . 3 . 1 . 32 . . 5 . . 5 1 4 48 . 1 . 1 . . Record 50 | . . . . . . . . . 11 . . 1 . . . . 2 36 . . . . . . Part Schematic 16 | . . . . . . . . . 12 . . . . . . . . 4 . . . . . . Robot Schematic 6 | . . . . . . . . . 6 . . . . . . . . . . . . . . . Robot Analysis 4 | . . . . . . . . . . . . . . . . . . 4 . . . . . . Prototype ID Bank 7 | . . . . . . . . . 3 . . . . . . . . 4 . . . . . . Open Door 3 | . . . . . . . . . . . . . . . . 1 2 . . . . . . . Open DSF 4 | . . . . . 1 . 1 . . . . . . . . . . . . 1 . 1 . . Branch Access Points 2 | . . . . . . . . . . . . 1 . . 1 . . . . . . . . . Alert Level 2 | . . . . . 1 . . . . . . . . . 1 . . . . . . . . . Locate Traps 2 | . 1 . . . . . . . . . . 1 . . . . . . . . . . . . Transport Status 1 | . . . . . . . . . . . . 1 . . . . . . . . . . . . Hauler Manifests 2 | . . . 1 . 1 . . . . . . . . . . . . . . . . . . . Zone Layout 6 | . 1 . 1 . . . . . . . . 1 . . 3 . . . . . . . . . Fabricator Hacks 5 | . . . . . . . . . . . 3 . . . 2 . . . . . . . . . Load Schematic 3 | . . . . . . . . . . . 2 . . . 1 . . . . . . . . . Build 2 | . . . . . . . . . . . 1 . . . 1 . . . . . . . . . Repair Station Hacks 4 | . . . . . . . . . . . . . 4 . . . . . . . . . . . Scan Component 2 | . . . . . . . . . . . . . 2 . . . . . . . . . . . Repair 2 | . . . . . . . . . . . . . 2 . . . . . . . . . . . Recycling Unit Hacks . | . . . . . . . . . . . . . . . . . . . . . . . . . Scanalyzer 1 | . . . . . . . . . . . 1 . . . . . . . . . . . . . Insert Component 1 | . . . . . . . . . . . 1 . . . . . . . . . . . . . Garrison Access Hacks 4 | . . . . . . . . . . . 1 . 1 . . . . . . . . 2 . . Unlock Access 2 | . . . . . . . . . . . . . 1 . . . . . . . . 1 . . Seal Access 1 | . . . . . . . . . . . 1 . . . . . . . . . . . . . Coupler Status 1 | . . . . . . . . . . . . . . . . . . . . . . 1 . . Unauthorized Hacks . | . . . . . . . . . . . . . . . . . . . . . . . . . Terminals . | . . . . . . . . . . . . . . . . . . . . . . . . . Fabricators . | . . . . . . . . . . . . . . . . . . . . . . . . . Repair Stations . | . . . . . . . . . . . . . . . . . . . . . . . . . Recycling Units . | . . . . . . . . . . . . . . . . . . . . . . . . . Scanalyzers . | . . . . . . . . . . . . . . . . . . . . . . . . . Garrison Access . | . . . . . . . . . . . . . . . . . . . . . . . . . Data Cores Recovered . | . . . . . . . . . . . . . . . . . . . . . . . . . Used . | . . . . . . . . . . . . . . . . . . . . . . . . . Hacking Detections 19 | . 1 . 2 1 3 . . . . . 3 2 2 1 3 . . . . . . . 1 . Full Trace Events 4 | . . . . 1 1 . . . . . 1 . 1 . . . . . . . . . . . Feedback Events . | . . . . . . . . . . . . . . . . . . . . . . . . . Feedback Blocked . | . . . . . . . . . . . . . . . . . . . . . . . . . Robot Schematics Acquired 6 | . . . . . . . . . 6 . . . . . . . . . . . . . . . Robots Built . | . . . . . . . . . . . . . . . . . . . . . . . . . Authchips 1 | . . . . . . . . . . . . . . . 1 . . . . . . . . . Time 245 | . . . . . . . . . . . 93 . . . 152 . . . . . . . . . Total Robot Build Rating . | . . . . . . . . . . . . . . . . . . . . . . . . . Part Schematics Acquired 16 | . . . . . . . . . 12 . . . . . . . . 4 . . . . . . Parts Built . | . . . . . . . . . . . . . . . . . . . . . . . . . Authchips . | . . . . . . . . . . . . . . . . . . . . . . . . . Time . | . . . . . . . . . . . . . . . . . . . . . . . . . Total Part Build Rating . | . . . . . . . . . . . . . . . . . . . . . . . . . Parts Repaired 2 | . . . . . . . . . . . . . 2 . . . . . . . . . . . Time 86 | . . . . . . . . . . . . . 86 . . . . . . . . . . . Parts Recycled . | . . . . . . . . . . . . . . . . . . . . . . . . . Recycled Matter . | . . . . . . . . . . . . . . . . . . . . . . . . . Retrieved Matter . | . . . . . . . . . . . . . . . . . . . . . . . . . Retrieved Components . | . . . . . . . . . . . . . . . . . . . . . . . . . Parts Scanalyzed . | . . . . . . . . . . . . . . . . . . . . . . . . . Part Schematics Acquired . | . . . . . . . . . . . . . . . . . . . . . . . . . Parts Damaged . | . . . . . . . . . . . . . . . . . . . . . . . . . Bothacking | -11 -10 -10 -9 -8 -7 -7 -6 -6 -6 -5 -5 -5 -4 -4 -4 -4 -4 -4 -3 -3 -3 -2 -2 -2 ------------ Run | Jun Mat Min Mat Mat Fac DSF Fac Low Dat Pro Fac Ext Fac Gar Fac Upp Upp Zhi Pro Res DSF Res Gar Res Used RIF Installer 2 | . . . . . . . . . . . . . . 1 . . . . . . . . 1 . Hotswap 1 | . . . . . . . . . . . . . . . . . . . . . . . 1 . Robots Hacked 7 | . . . . . . . . . . . . . . . 1 . . . . . . . 5 1 Non-combat 1 | . . . . . . . . . . . . . . . . . . . . . . . . 1 Combat 6 | . . . . . . . . . . . . . . . 1 . . . . . . . 5 . Robot Hacks Applied 7 | . . . . . . . . . . . . . . . 1 . . . . . . . 5 1 start_evac 1 | . . . . . . . . . . . . . . . . . . . . . . . . 1 scatter_targeting 1 | . . . . . . . . . . . . . . . . . . . . . . . 1 . go_dormant 2 | . . . . . . . . . . . . . . . . . . . . . . . 2 . overwrite_iff 3 | . . . . . . . . . . . . . . . 1 . . . . . . . 2 . Relay Couplers Released 16 | . . . . . . . . . . . . . . 4 . . . . . . . . 12 . Machine Destruction 16 | . . . . . . . . . . . . . . 4 . . . . . . . . 12 . Attached 9 | . . . . . . . . . . . . . . 1 1 . . . . . . . 7 . Fabnet Peak Effective % . | . . . . . . . . . . . . . . . . . . . . . . . . . Robots Rewired 12 | . . . . . . . . . . . . 6 . . . . . . . . . . 6 . Allies Hacked . | . . . . . . . . . . . . . . . . . . . . . . . . . Hacks Repelled . | . . . . . . . . . . . . . . . . . . . . . . . . . Allies | -11 -10 -10 -9 -8 -7 -7 -6 -6 -6 -5 -5 -5 -4 -4 -4 -4 -4 -4 -3 -3 -3 -2 -2 -2 -------- Run | Jun Mat Min Mat Mat Fac DSF Fac Low Dat Pro Fac Ext Fac Gar Fac Upp Upp Zhi Pro Res DSF Res Gar Res Total Allies 19 | . . . . . . . . . . 1 . 7 . . 1 . 2 . . . . . 8 . Largest Group 6 | . . . . . . . . . . 1 . 4 . . 1 . 2 . . . . . 6 2 Highest-Rated Group 230 | . . . . . . . . . . 96 . 104 . . 56 . 84 . . . . . 230 96 Highest-Rated Ally 96 | . . . . . . . . . . 96 . 39 . . 56 . 46 . . . . . 58 48 Total Orders . | . . . . . . . . . . . . . . . . . . . . . . . . . Ally Attacks 82 | . . . . . . . . . . 25 . 28 . . 3 . 10 . . . . . 13 3 Total Damage 2671 | . . . . . . . . . . 1170 . 655 . . 93 . 189 . . . . . 481 83 Kills 22 | . . . . . . . . . . 11 . 5 . . . . 3 . . . . . 2 1 Allies Corrupted . | . . . . . . . . . . . . . . . . . . . . . . . . . Allies Melted . | . . . . . . . . . . . . . . . . . . . . . . . . . Intel | -11 -10 -10 -9 -8 -7 -7 -6 -6 -6 -5 -5 -5 -4 -4 -4 -4 -4 -4 -3 -3 -3 -2 -2 -2 ------- Run | Jun Mat Min Mat Mat Fac DSF Fac Low Dat Pro Fac Ext Fac Gar Fac Upp Upp Zhi Pro Res DSF Res Gar Res Robot Analysis Total 4 | . . . . . . . . . . . . . . . . . . 4 . . . . . . Derelict Logs Recovered 7 | . . 1 . . . . . . . 2 . . . . . 2 2 . . . . . . . Drone Launches . | . . . . . . . . . . . . . . . . . . . . . . . . . Drone Recoveries . | . . . . . . . . . . . . . . . . . . . . . . . . . Exploration | -11 -10 -10 -9 -8 -7 -7 -6 -6 -6 -5 -5 -5 -4 -4 -4 -4 -4 -4 -3 -3 -3 -2 -2 -2 ------------- Run | Jun Mat Min Mat Mat Fac DSF Fac Low Dat Pro Fac Ext Fac Gar Fac Upp Upp Zhi Pro Res DSF Res Gar Res Turns Passed 5276 | 40 64 345 200 116 77 83 141 83 24 594 49 139 222 78 346 259 477 109 576 191 121 131 689 122 Spaces Moved 9036 | 38 80 363 180 219 170 120 358 203 92 1413 178 284 432 220 750 629 1197 217 555 287 84 217 578 172 Core 11 | 11 . . . . . . . . . . . . . . . . . . . . . . . . Treads 124 | . . . . . . . . . . . . . . . . . . . 124 . . . . . Legs . | . . . . . . . . . . . . . . . . . . . . . . . . . Wheels 659 | 27 80 363 180 9 . . . . . . . . . . . . . . . . . . . . Hover 651 | . . . . . . . . . . . . . . . . . . . 315 287 30 . . 19 Flight 7591 | . . . . 210 170 120 358 203 92 1413 178 284 432 220 750 629 1197 217 116 . 54 217 578 153 Fastest Speed 20 | 50 80 80 80 26 26 23 26 26 26 23 20 20 23 24 21 21 32 32 32 61 33 32 28 28 Average Speed 36 | 75 80 80 80 30 26 24 27 26 26 23 21 20 25 24 24 22 32 32 82 63 56 32 44 34 Slowest Speed 272 | 95 80 80 80 245 26 29 32 26 26 93 23 23 26 24 27 32 32 32 160 70 122 32 117 272 Overloaded Moves . | . . . . . . . . . . . . . . . . . . . . . . . . . Propulsion Burnouts . | . . . . . . . . . . . . . . . . . . . . . . . . . Robots Hopped 17 | . . . . 2 . . . . . 2 1 5 4 . 1 . . 2 . . . . . . Cave-ins Triggered 1 | . . . . . . . . . . . . . . . . . . . . . . . 1 . Teleports 1 | . . . . . . . . . . . . . . . . . . 1 . . . . . . Exploration Rate (%) 40 | 3 29 64 21 23 7 92 10 28 74 96 6 44 14 35 21 81 96 63 63 10 73 11 44 8 Regions Visited 24 Branch Regions 9 Pre-discovered Areas 7 | . . . . . . . . . 1 . . . . . . 1 2 3 . . . . . . Known Exits Taken 8 | . . . . . 1 . 1 1 1 . . . 1 . 1 . . . . 1 . 1 . . Unknown Exits Taken 12 | 1 1 1 1 1 . . . . . 1 1 1 . . . 1 1 1 1 . . . . . Scrap Searched 18 | . . . . . . . . 2 . 5 . . . . . 4 3 . 4 . . . . . Spaces Dug 51 | . . . . . . . . . . 2 . . 9 . 16 5 . . 4 . . 2 13 . Terrain Destroyed 74 | . . 10 . . . 8 . . . 5 . . 9 . 16 5 . . 5 . . 2 13 1 Melee 43 | . . . . . . . . . . 2 . . 9 . 16 5 . . 4 . . 2 5 . Projectile 13 | . . . . . . . . . . 3 . . . . . . . . 1 . . . 8 1 AOE 18 | . . 10 . . . 8 . . . . . . . . . . . . . . . . . . Terrain Rammed . | . . . . . . . . . . . . . . . . . . . . . . . . . Walls Destroyed . | . . . . . . . . . . . . . . . . . . . . . . . . . Machines Disabled . | . . . . . . . . . . . . . . . . . . . . . . . . . Actions | -11 -10 -10 -9 -8 -7 -7 -6 -6 -6 -5 -5 -5 -4 -4 -4 -4 -4 -4 -3 -3 -3 -2 -2 -2 --------- Run | Jun Mat Min Mat Mat Fac DSF Fac Low Dat Pro Fac Ext Fac Gar Fac Upp Upp Zhi Pro Res DSF Res Gar Res Total 10650 | 49 79 401 215 260 198 169 395 215 91 1648 187 352 524 240 860 740 1283 253 619 292 145 270 945 220 Wait 933 | . . 13 9 18 . . 13 2 . 177 . 54 69 . 71 98 74 27 20 . 17 44 202 25 Move 8980 | 37 79 362 179 214 169 119 357 202 91 1408 175 275 424 218 747 628 1196 212 554 286 83 217 576 172 Hop 15 | . . . . 2 . . . . . 2 1 3 4 . 1 . . 2 . . . . . . Pick Up 101 | 6 . 3 6 10 3 2 6 2 . 14 5 2 7 2 3 1 3 1 4 . 7 3 8 3 Fast Attach 40 | . . . . . 1 2 . . . 3 . 1 . 4 2 . . 5 2 4 5 . 11 . Attach 87 | 6 . 1 3 5 3 5 5 1 . 5 5 1 4 . 4 4 3 1 7 . 6 2 11 5 Detach 22 | . . . . . . 1 . . . 4 . 2 1 . 1 3 1 1 1 . . . 6 1 Swap 27 | . . 2 3 3 1 . . 3 . 9 . 1 . . 2 . . . . . . . 3 . Drop 55 | . . . 3 5 1 4 . . . 9 1 1 4 2 1 1 1 4 1 1 6 . 10 . Fire 111 | . . 12 12 3 . 2 . 5 . 5 . 11 . . 1 . 1 . 7 . . . 40 12 Melee 125 | . . . . . 2 2 3 . . 12 . 1 11 1 27 5 4 . 23 1 6 4 21 2 Ram 8 | . . 8 . . . . . . . . . . . . . . . . . . . . . . Kick . | . . . . . . . . . . . . . . . . . . . . . . . . . Crush . | . . . . . . . . . . . . . . . . . . . . . . . . . Escape Stasis 146 | . . . . . 18 32 11 . . . . . . 13 . . . . . . 15 . 57 . Rewire . | . . . . . . . . . . . . . . . . . . . . . . . . . Trap . | . . . . . . . . . . . . . . . . . . . . . . . . . Miscellaneous . | . . . . . . . . . . . . . . . . . . . . . . . . . Route ------- -11/Junkyard -10/Materials -10/Mines -9/Materials -8/Materials -7/Factory -7/DSF -6/Factory -6/Lower Caves -6/Data Miner -5/Proximity Caves -5/Factory -5/Extension (discovered 2 exits: *Fac / Cet) -4/Factory -4/Garrison -4/Factory (discovered 2 exits: *Upp x2) -4/Upper Caves -4/Upper Caves (discovered 2 exits: *Res / *Zhi) -4/Zhirov -3/Proximity Caves -3/Research (discovered 2 exits: Arm / DSF) -3/DSF -2/Research -2/Garrison -2/Research History --------- Turn | Location | Event 17 | -11/Junkyard | Discovered new exit (range 16) 41 | -11/Junkyard | Entered Materials 81 | -10/Materials | Discovered new exit (range 14) 105 | -10/Materials | Entered Mines 133 | -10/Mines | Received a Rocket Launcher from a helpful Derelict 171 | -10/Mines | Assembled infested the area 305 | -10/Mines | Build established: Mutant 434 | -10/Mines | Discovered new exit (range 15) 447 | -10/Mines | Learned Materials garrison access intel 450 | -10/Mines | Entered Materials 450 | -9/Materials | Evolved 2 slots: Propulsion x1, Utility x1 647 | -9/Materials | Discovered new exit (range 3) 650 | -9/Materials | Entered another Materials area 650 | -8/Materials | Evolved 2 slots: Propulsion x1, Utility x1 651 | -8/Materials | Loaded intel: 1 garrison access location 763 | -8/Materials | Discovered new exit (range 14) 766 | -8/Materials | Entered Factory 766 | -7/Factory | Evolved 2 slots: Power x1, Propulsion x1 843 | -7/Factory | Identified exit to DSF 843 | -7/Factory | Entered DSF 872 | -7/DSF | Additional patrols routed to DSF 899 | -7/DSF | Discovered new exit (range 15) 926 | -7/DSF | Entered Factory 926 | -6/Factory | Evolved 2 slots: Utility x2 944 | -6/Factory | Build established: Sprinter 951 | -6/Factory | Lost 7 parts (2p2n2u1w) 1005 | -6/Factory | Discovered new exit (range 8) 1067 | -6/Factory | Identified exit to Lower Caves 1067 | -6/Factory | Entered Lower Caves 1134 | -6/Lower Caves | Attracted the attention of an 0b10 checkpoint 1147 | -6/Lower Caves | A Derelict revealed a hidden shortcut to meet someone special 1150 | -6/Lower Caves | Identified exit to Data Miner 1150 | -6/Lower Caves | Entered Data Miner 1150 | -6/Data Miner | Discovered new exit (range 6) 1155 | -6/Data Miner | Met Data Miner 1161 | -6/Data Miner | Learned location of Section 7 (-2) 1161 | -6/Data Miner | Acquired the access code to Warlord's prototype stash 1166 | -6/Data Miner | Received God Mode back door access code from Data Miner 1174 | -6/Data Miner | Identified exit to Proximity Caves 1174 | -6/Data Miner | Entered Proximity Caves 1214 | -5/Proximity Caves | Learned Factory stockpile data 1267 | -5/Proximity Caves | Escorted by Enhanced Grunt 1326 | -5/Proximity Caves | Discovered new exit (range 10) 1405 | -5/Proximity Caves | Ambushed by research squad 1446 | -5/Proximity Caves | Found Prototype Device 1450 | -5/Proximity Caves | Identified Exp. Thermal Shield 1620 | -5/Proximity Caves | Learned Factory interactive machine intel 1650 | -5/Proximity Caves | Spotted B-75 Beast 1730 | -5/Proximity Caves | Attracted the attention of an 0b10 outpost 1768 | -5/Proximity Caves | Entered Factory 1768 | -5/Factory | Evolved 2 slots: Propulsion x1, Utility x1 1770 | -5/Factory | Loaded intel: 53 interactive machine locations 1770 | -5/Factory | Lost 3 parts (1p1u1w) 1814 | -5/Factory | Discovered new exit (range 14) 1817 | -5/Factory | Entered Extension 1819 | -5/Extension | Disrupted transfer network 1843 | -5/Extension | Identified exit to Cetus 1878 | -5/Extension | Rescued a captive Derelict 1883 | -5/Extension | Spotted B-75 Beast 1952 | -5/Extension | Spotted B-75 Beast 1956 | -5/Extension | Discovered new exit (range 3) 1956 | -5/Extension | Entered Factory 1956 | -4/Factory | Evolved 2 slots: Utility x1, Weapon x1 1987 | -4/Factory | Lost 3 parts (1p2u) 2004 | -4/Factory | Repaired Sml. Storage Unit 2072 | -4/Factory | Repaired Imp. VTOL Module? 2178 | -4/Factory | Identified exit to Garrison 2178 | -4/Factory | Entered Garrison 2222 | -4/Garrison | Spotted B-86 Titan 2230 | -4/Garrison | Discovered new exit (range 21) 2234 | -4/Garrison | Installed Relay Interface Framework 2241 | -4/Garrison | Garrison Relay disabled 2250 | -4/Garrison | Triggered checkpoint 2256 | -4/Garrison | Entered Factory 2383 | -4/Factory | Spotted B-86 Titan 2471 | -4/Factory | Identified exit to Upper Caves 2602 | -4/Factory | Entered Upper Caves 2603 | -4/Upper Caves | Encountered a Warlord checkpoint 2707 | -4/Upper Caves | Learned location of 1 exit from Research 2741 | -4/Upper Caves | Build established: Hacker-Sprinter 2802 | -4/Upper Caves | Spotted B-86 Titan 2819 | -4/Upper Caves | Attracted the attention of an 0b10 checkpoint 2850 | -4/Upper Caves | Learned location of Testing (-2) 2853 | -4/Upper Caves | Discovered new exit (range 6) 2861 | -4/Upper Caves | Entered another Upper Caves area 2877 | -4/Upper Caves | Lost 7 parts (2p5n) 2879 | -4/Upper Caves | A Commander dispatched an escort 2957 | -4/Upper Caves | Encountered a Warlord checkpoint 3029 | -4/Upper Caves | Discovered new exit (range 22) 3278 | -4/Upper Caves | Discovered new exit (range 12) 3338 | -4/Upper Caves | Entered Zhirov 3338 | -4/Zhirov | Discovered new exit (range 3) 3349 | -4/Zhirov | Met Zhirov 3356 | -4/Zhirov | Learned location of Quarantine (-3) 3356 | -4/Zhirov | Learned location of Command (-1) 3363 | -4/Zhirov | Zhirov requested help retrieving the SGEMP Prototype 3370 | -4/Zhirov | Found Alien Artifact 3370 | -4/Zhirov | Identified Integrated Dissipator 3370 | -4/Zhirov | Installed Integrated Dissipator, increased core heat dissipation (+20) 3379 | -4/Zhirov | Found Alien Artifact 3379 | -4/Zhirov | Identified Transdimensional Reconstructor 3379 | -4/Zhirov | Warped through subspace 3447 | -4/Zhirov | Entered Proximity Caves 3500 | -3/Proximity Caves | Attracted the attention of an 0b10 checkpoint 3509 | -3/Proximity Caves | Core integrity fell below 50% 3585 | -3/Proximity Caves | Lost 8 parts (1p2n2u3w) 3699 | -3/Proximity Caves | Core integrity fell below 20% 3786 | -3/Proximity Caves | Build established: Hacker-Mutant 4017 | -3/Proximity Caves | Discovered new exit (range 10) 4023 | -3/Proximity Caves | Entered Research 4023 | -3/Research | Evolved 2 slots: Utility x2 4024 | -3/Research | Identified exit to Armory 4050 | -3/Research | Lost 3 parts (1n1u1w) 4208 | -3/Research | Identified exit to DSF 4214 | -3/Research | Entered DSF 4224 | -3/DSF | Found Enh. Force Lance 4226 | -3/DSF | Found Enh. Force Lance 4253 | -3/DSF | Additional patrols routed to DSF 4267 | -3/DSF | Lost 3 parts (1p1n1w) 4324 | -3/DSF | Discovered new exit (range 22) 4335 | -3/DSF | Entered Research 4335 | -2/Research | Evolved 2 slots: Propulsion x2 4463 | -2/Research | Identified exit to Garrison 4466 | -2/Research | Entered Garrison 4472 | -2/Garrison | Triggered checkpoint 4521 | -2/Garrison | Garrison Relay disabled 4527 | -2/Garrison | Lost 3 parts (1n1u1w) 4701 | -2/Garrison | Spotted B-90 Cyclops 4706 | -2/Garrison | Garrison Relay disabled 4722 | -2/Garrison | Triggered checkpoint 4845 | -2/Garrison | Crushed by falling debris 4846 | -2/Garrison | System corruption reached 10% 4876 | -2/Garrison | Lost 4 parts (2n2u) 4897 | -2/Garrison | Garrison Relay disabled 5023 | -2/Garrison | Expanded RIF knowledge: Hotswap 5078 | -2/Garrison | Triggered checkpoint 5118 | -2/Garrison | Triggered checkpoint 5124 | -2/Garrison | Discovered new exit (range 17) 5132 | -2/Garrison | Triggered checkpoint 5155 | -2/Garrison | Entered Research 5155 | -2/Research | Accompanied by 2 allies 5277 | -2/Research | Self-destructed Last Messages --------------- 05243_ System corrupted: Enh. Quantum Rifle failed to cycle. 05247_ System corrupted: IFF burst signal emitted. 05252_ Slug penetrates Meson Extractor. 05252_ Lgt. Quantum Reactor destroyed. 05253_ Sml. Battery melted. 05253_ P-80 Master destroyed. 05257_ Acquired Imp. Antigrav System. 05257_ W-44 Eye sends out distress signal. 05259_ Acquired 64 matter. 05260_ Acquired Imp. Antigrav System. 05260_ Penetrated by Slug. 05265_ System corrupted: Component data lost. 05266_ Penetrated by Slug. 05267_ K-01 Serf collects debris. 05267_ W-44 Eye sends out distress signal. 05271_ Terminal disabled. 05274_ Slug penetrates Wall. 05275_ Enh. Optical Array destroyed. 05275_ Lgt. Antimatter Reactor destroyed. 05276_ Cesium-ion Thruster destroyed. Map ----- +----------------------------------------------------+ | ?????????????????????????????????# # "" | | ?????????????????????????????????# # " | | ?????????????????????????????????# #? | | ?????????????????????????????????# ########? | | ?????????????????????????????????# #?????????## | | ?????????????????????????????????# ########???? | | ????????????????????????????????## #???? | | ????????????????????????????????# #???? | | ????????????????????????????????#T #???? | | ????????????????????????????????## #???? | | ???????????????????????????####### #???? | | ???????????????????????????# #???? | | ???????????????????????????# #???? | | ???????????????????????????# +???? | | ??????????????????########## #???? | | ??????????????????# # ######### #???? | | ??????????????????# # #???????? #???? | | ??????????????#???# # #???????? #???? | | ?????????????# # """ # #???????? #???? | | ?????????????+ # """ # #????????? #???? | | ?????????????# # p"" # #????????? #???? | | ?????????????# ?# ! H / #????????? #???? | | ?????????????# ???# kw # #?????????? +???? | | ?????????????#????# # #?????????? #???? | | ?????????????# ######;### #?????????? #???? | | ?????????????# u uR@c #??????????? #???? | | ?????????????# cccp #??????????? #???? | | ?????????????# #????????????????? | | ?????????????# ""#????????????????? | | ?????????????######### ""#????????????????? | | ?????????????????????# "#????????????????? | | ?????????????????????# w""#????????????????? | | ?????????????????????# ] ""#????????????????? | | ?????????????????????# #????????????????? | | ?????????????????????# #????????????????? | | ?????????????????????# #????????????????? | | ?????????????????????#// !! #????????????????? | | ?????????????????????#/! !! #????????????????? | | ?????????????????????# #????????????????? | | ????????????????????? ????????????????? | | ????????????????????? ????????????????? | | ???????????????????? ???????????????? | | ???????????????????? ???????????????? | | ???????????????????######### ###??????????????? | | ???????????????????????????? #????????????????? | | ???????????????????????????? ?????????????????? | | ???????????????????????????? ???????????????????? | | ?????????????????????????????????????????????????? | | ?????????????????????????????????????????????????? | | ?????????????????????????????????????????????????? | +----------------------------------------------------+ Best States ------------- Heat Dissipation 69 Energy Generation 45 Energy Capacity 450 Matter Stores 300 Matter Capacity 300 Sight Range 22 Robot Scan Range 15 Terrain Scan Density 10 ECM Strength 2 Armor Coverage 150 Resistance: TH 30 Evasion (%) 66 Melee Accuracy 16 Core Analysis 6 Armor Integrity Analysis 40 Recoil Reduction 1 Salvage Targeting 1 Offensive Hacking 26 Defensive Hacking 26 Relay Coupler Types 5 Relay Coupler Value 151 Authchip Count 4 Item Schematics ----------------- Combat Drone Bay | -6/Data Miner | Free Lgt. Regenerative Plating | -6/Data Miner | Free Cld. Nuclear Pulse Thruster | -6/Data Miner | Free Prc. Matter Filter | -6/Data Miner | Free Kinetic Spear | -6/Data Miner | Free Imp. Linear Gravjet | -6/Data Miner | Free Point Defense Array | -6/Data Miner | Free Hardcell Cannon | -6/Data Miner | Free Mass Driver | -6/Data Miner | Free Impulse Thruster | -6/Data Miner | Free Adv. Power Amplifier | -6/Data Miner | Free Com. HERF Cannon | -6/Data Miner | Free Assault Drone Bay | -4/Zhirov | Free Exp. Heat Sink | -4/Zhirov | Free Exp. Optical Array | -4/Zhirov | Free Imp. Arc Thrower | -4/Zhirov | Free Robot Schematics ------------------ L-41 Fighter | -6/Data Miner | Free H-66 Slayer | -6/Data Miner | Free B-60 Warrior | -6/Data Miner | Free G-50 Soldier | -6/Data Miner | Free R-10 Processor | -6/Data Miner | Free M-36 Artificer | -6/Data Miner | Free Fabricated ------------ Nothing Alien Tech Used ----------------- Integrated Dissipator Transdimensional Reconstructor Achievements -------------- Adventurer The Science Guy Challenges ------------ None Game ------ Seed MinesnifferBurstAxe Manual? 0 Play Time 02:02:36 Cumulative 62.8 hours Start 2023.05.10 @ 08:50:13 End 2023.05.10 @ 11:06:43 Sessions 1 Manual Loads 0 Difficulty Rogue Special Mode None Game No. 201 Rogue 201 Adventurer 0 Explorer 0 Win Type - Total 0 Types 0/0/0/0/0/0/0/0/0 Lore% 41 Gallery% 49 Achievement% 38 Wizard Run 0 Options --------- ASCII 0 Keyboard 0 Movement Mouse Keybinds 0 Fullscreen 1 Font 18/SmallcapsGlow Map View 76x50 Tactical HUD 1 Map Filters NONE Filters NONE Steam 1 RUN: 8758e4ea-77e8-4d59-b724-0eba941cd561